bitfinex/quotes_ETHUSD_20241207
["timestamp","ask_amount","ask_price","bid_price","bid_amount"]
[1733598807253,0.86284819,4017.4,4017.3,1.09795682]
[1733598807652,0.86303021,4017.4,4017.3,1.09795682]
[1733598808533,2.15767251,4017.4,4017.3,1.09795682]
[1733598812664,2.15806018,4017.4,4017.3,1.09795682]
[1733598813676,3.20149516,4017.4,4017.3,1.09795682]
[1733598814779,2.15806018,4017.4,4017.3,1.09795682]
[1733598817578,2.15806018,4017.4,4017.3,2.84041682]
[1733598817783,2.1584907,4017.4,4017.3,2.84041682]
[1733598820387,2.1584907,4017.4,4017.3,3.39041682]
[1733598820594,2.1584907,4017.4,4017.3,3.8083485]
[1733598822474,1.04343498,4017.5,4017.4,2.29242]
[1733598822670,3.20216619,4017.5,4017.4,2.29242]
[1733598822876,3.20216619,4017.5,4017.4,2.32025774]
[1733598823455,2.15873121,4017.5,4017.4,2.32025774]
[1733598825321,2.15873121,4017.5,4017.4,0.02783774]
[1733598825740,2.15873121,4017.5,4017.3,1.07028504]
[1733598825912,1.56513183,4017.6,4017.4,0.02690982]
[1733598826241,2.15899423,4017.5,4017.4,0.02690982]
[1733598827847,2.15898987,4017.5,4017.4,0.02690982]
[1733598828554,2.98178987,4017.5,4017.2,1.07028504]
[1733598828757,0.8228,4017.5,4017.4,0.02690982]
[1733598829056,2.98183818,4017.5,4017.4,0.02690982]
[1733598829373,2.15903818,4017.5,4017.2,1.07028504]
[1733598829524,1.56513183,4017.6,4017.4,0.02690982]
[1733598829724,2.15915422,4017.5,4017.2,1.07028504]
[1733598830046,3.20364262,4017.4,4017.1,4.74253]
[1733598830348,1.0444884,4017.4,4017.3,1.07028504]
[1733598830550,3.20378838,4017.4,4017.3,1.07028504]
[1733598830931,3.20378838,4017.4,4017.3,1.09719486]
[1733598832634,3.20391963,4017.4,4017.3,1.09719486]
[1733598834059,3.20391963,4017.4,4017.3,2.83965486]
[1733598834278,2.15943123,4017.4,4017.3,2.83965486]
[1733598834423,3.20412461,4017.4,4017.3,3.38965486]
[1733598834852,2.15943123,4017.4,4017.3,3.38965486]
[1733598835972,3.20412461,4017.4,4017.3,3.38965486]
[1733598837527,3.20446555,4017.4,4017.3,3.38965486]
[1733598839578,2.15977217,4017.4,4017.3,3.38965486]
[1733598840278,3.20446555,4017.4,4017.3,3.38965486]
[1733598841281,2.1601511,4017.4,4017.3,3.38965486]
[1733598842543,2.1601511,4017.4,4017.3,1.09719486]
[1733598843788,2.1601511,4017.4,4017.3,0.02690982]
[1733598844002,2.1601511,4017.4,4017.2,1.62028504]
[1733598844283,3.205146,4017.3,4017.2,1.62028504]
[1733598844505,2.1601511,4017.3,4017.2,1.62028504]
[1733598845461,2.1601511,4017.3,4017.2,1.64689486]
[1733598845893,2.16021241,4017.3,4017.2,1.64689486]
[1733598846904,0.86408496,4017.3,4017.2,1.64689486]
[1733598847207,0.8640775,4017.3,4017.2,1.64689486]
[1733598847710,0.8640775,4017.3,4017.2,1.09689486]
[1733598847869,1.0449949,4017.5,4017.2,1.09689486]
[1733598848071,0.86407153,4017.4,4017.2,1.09689486]
[1733598848367,1.0449949,4017.5,4017.2,1.09689486]
[1733598848669,0.86400732,4017.4,4017.2,0.02660982]
[1733598848868,0.86402695,4017.3,4017.2,0.02660982]
[1733598849068,0.86402695,4017.3,4017.0,1.62028504]
[1733598849270,1.0449949,4017.5,4017.2,0.02572282]
[1733598849505,0.86402774,4017.4,4017.0,1.62028504]
[1733598849819,1.0449949,4017.5,4017.0,1.62028504]
[1733598849974,0.86398992,4017.4,4017.1,0.02572282]
[1733598850177,1.0449949,4017.5,4017.1,0.02572282]
[1733598850387,0.86398906,4017.4,4017.1,0.02572282]
[1733598850589,1.0449949,4017.5,4017.1,0.02572282]
[1733598850788,0.7613,4017.6,4016.9,0.55]
[1733598850789,3.20492801,4017.4,4016.9,0.55]
[1733598851001,2.15993311,4017.3,4017.0,0.02586927]
[1733598851225,0.86395521,4017.2,4017.0,1.09615431]
[1733598851523,1.0449949,4017.4,4017.0,1.09615431]
[1733598851677,2.16000828,4017.3,4017.0,1.09615431]
[1733598851868,0.86400331,4017.2,4017.0,1.09615431]
[1733598852068,1.0449949,4017.4,4017.0,1.09615431]
[1733598852267,2.16001198,4017.3,4017.0,1.09615431]
[1733598852472,0.86400479,4017.2,4017.0,1.09615431]
[1733598852668,1.0449949,4017.4,4017.0,1.09615431]
[1733598852916,2.16001148,4017.3,4017.0,1.09615431]
[1733598853132,0.86400459,4017.2,4017.0,1.09615431]
[1733598853315,1.0449949,4017.4,4017.0,1.09615431]
[1733598853609,2.16000513,4017.3,4017.0,1.09615431]
[1733598853785,0.86400205,4017.2,4017.0,1.09615431]
[1733598853988,1.0449949,4017.4,4017.0,1.09615431]
[1733598854218,2.16001483,4017.3,4017.0,1.09615431]
[1733598854367,1.0449949,4017.4,4017.0,1.09615431]
[1733598854368,0.86400593,4017.2,4017.0,1.09615431]
[1733598854567,1.0449949,4017.4,4017.0,1.09615431]
[1733598854774,2.16002475,4017.3,4017.0,1.09615431]
[1733598855015,1.0449949,4017.4,4017.0,1.09615431]
[1733598855319,2.16002,4017.3,4017.0,1.09615431]
[1733598855499,1.0449949,4017.4,4017.0,1.09615431]
[1733598855705,0.86400872,4017.3,4017.0,1.09615431]
[1733598855879,1.0449949,4017.4,4017.0,1.09615431]
[1733598856079,0.86400851,4017.3,4017.0,1.09615431]
[1733598856282,2.0,4017.2,4017.0,1.09615431]
[1733598860040,2.0,4017.2,4017.1,1.74255]
[1733598860212,2.0,4017.2,4017.1,3.03454723]
[1733598860410,2.0,4017.2,4017.1,3.05941709]
[1733598863103,2.0,4017.2,4017.1,3.85081709]
[1733598863446,2.0,4017.2,4017.1,7.88208507]
[1733598863745,2.0,4017.2,4017.1,6.85081709]
[1733598864337,2.0,4017.2,4017.1,9.81967295]
[1733598864498,2.0,4017.2,4017.1,6.85081709]
[1733598864693,2.0,4017.2,4017.1,7.88731268]
[1733598865836,2.0,4017.2,4017.1,6.85081709]
[1733598866442,2.0,4017.2,4017.1,7.88700728]
[1733598866737,2.0,4017.2,4017.1,6.85081709]
[1733598866969,2.0,4017.2,4017.1,7.88693778]
[1733598868054,2.0,4017.2,4017.1,6.85081709]
[1733598868355,2.0,4017.2,4017.1,7.88680004]
[1733598870858,1.0449949,4018.4,4018.0,0.55]
[1733598871154,1.0449949,4018.7,4018.6,1.7419]
[1733598871310,1.8004949,4018.9,4018.6,1.07028504]
[1733598871512,0.7555,4018.9,4018.7,1.74185]
[1733598871749,0.7555,4018.9,4018.7,1.76629028]
[1733598872625,1.8004949,4019.3,4018.7,0.57444028]
[1733598872832,0.7555,4019.3,4019.1,1.07028504]
[1733598873039,0.7555,4019.3,4019.2,0.02403036]
[1733598877355,0.7555,4019.7,4019.2,1.76567036]
[1733598877561,0.7555,4019.7,4019.4,1.07028504]
[1733598877858,0.7555,4019.7,4019.5,0.02343019]
[1733598878066,0.7555,4019.7,4019.6,1.74146]
[1733598878572,0.7555,4019.7,4019.4,2.81182504]
[1733598878729,0.7555,4019.7,4019.6,0.02343019]
[1733598878925,0.7555,4019.7,4019.4,2.81182504]
[1733598879138,0.7555,4019.7,4019.6,0.02343019]
[1733598879334,0.7555,4019.7,4019.4,2.81182504]
[1733598879823,0.7555,4019.7,4019.5,0.02343019]
[1733598884488,0.7555,4019.7,4019.6,0.02343019]
[1733598884875,0.7555,4019.7,4019.3,2.81185504]
[1733598885048,0.7555,4019.7,4019.6,0.02343019]
[1733598885254,0.7555,4019.7,4019.3,2.81185504]
[1733598885474,0.7555,4019.7,4019.4,0.02343019]
[1733598886297,0.7555,4019.7,4019.4,1.76498019]
[1733598887097,0.7599,4020.7,4019.6,1.07028504]
[1733598887399,0.7599,4020.7,4019.6,2.81172504]
[1733598887976,0.7599,4020.7,4019.7,0.02343019]
[1733598889568,0.7599,4020.6,4019.7,0.02343019]
[1733598890887,2.50095,4020.6,4019.7,0.02343019]
[1733598891084,0.8129,4020.4,4019.7,0.02343019]
[1733598891381,0.8129,4020.4,4019.3,0.55]
[1733598891585,0.8129,4020.4,4019.8,0.02328386]
[1733598891986,0.8129,4020.4,4019.3,0.55]
[1733598892314,0.8129,4020.4,4019.4,0.02328386]
[1733598892871,2.55402,4020.4,4019.4,0.02328386]
[1733598893072,0.8129,4020.3,4019.4,0.02328386]
[1733598896102,2.33196432,4020.8,4019.4,0.02328386]
[1733598896103,0.8129,4020.0,4019.4,0.02328386]
[1733598896644,0.8129,4020.0,4018.8,0.55]
[1733598896841,0.8129,4020.0,4018.9,0.02299116]
[1733598897740,1.74134,4019.9,4018.9,0.02299116]
[1733598901104,0.8129,4020.0,4018.9,0.02299116]
[1733598901304,0.7792,4019.7,4018.9,0.02299116]
[1733598901508,1.74147,4019.6,4018.9,0.02299116]
[1733598901827,1.74147,4019.6,4018.7,1.82698504]
[1733598902345,1.74151,4019.5,4018.8,0.0222882]
[1733598902504,0.7792,4019.7,4018.8,0.0222882]
[1733598902705,0.7792,4019.2,4018.4,1.89748504]
[1733598903016,0.7792,4019.2,4018.4,0.8272]
[1733598903210,0.7792,4019.2,4018.5,0.02264915]
[1733598903604,2.52107,4018.7,4017.9,1.07028504]
[1733598904675,2.52107,4018.7,4017.8,0.8272]
[1733598904676,1.7419,4018.6,4017.8,0.8272]
[1733598905309,1.74195,4018.5,4017.8,0.8272]
[1733598905516,1.74195,4018.5,4017.7,1.07028504]
[1733598905813,0.7792,4018.6,4017.5,0.8272]
[1733598906021,1.74205,4018.3,4017.5,0.8272]
[1733598906238,0.7792,4018.6,4017.5,0.8272]
[1733598906239,1.74209,4018.2,4017.5,0.8272]
[1733598907951,1.74203,4018.3,4017.5,0.8272]
[1733598908251,1.74194,4018.5,4017.5,0.8272]
[1733598909050,0.7792,4018.6,4017.5,0.8272]
[1733598909260,1.74198,4018.4,4017.5,0.8272]
[1733598909457,0.8171,4018.1,4017.4,1.07028504]
[1733598910258,0.8171,4018.1,4017.2,1.83888504]
[1733598910418,0.8171,4018.1,4017.2,0.7686]
[1733598910620,0.8171,4018.1,4017.2,1.83888504]
[1733598911554,0.8171,4018.1,4017.2,0.7686]
[1733598911967,0.8171,4018.1,4017.3,1.07028504]
[1733598914360,0.8171,4018.1,4017.2,0.7686]
[1733598914521,0.8171,4018.1,4017.3,1.07028504]
[1733598917917,2.55921,4018.1,4017.3,1.07028504]
[1733598918376,1.7422,4017.9,4017.2,0.7686]
[1733598918930,0.8171,4018.1,4017.2,0.7686]
[1733598919677,1.74216,4018.0,4017.2,0.7686]
[1733598921416,0.8103,4018.5,4017.5,0.8167]
[1733598921620,1.74198,4018.4,4017.5,0.8167]
[1733598923789,1.74203,4018.3,4017.5,0.8167]
[1733598923996,0.8103,4018.5,4017.5,0.8167]
[1733598924301,1.7421,4018.2,4017.5,0.8167]
[1733598924470,1.74212,4018.1,4017.5,0.8167]
[1733598925214,1.74203,4018.3,4017.5,0.8167]
[1733598925889,1.74208,4018.2,4017.5,0.8167]
[1733598926379,1.74212,4018.1,4017.5,0.8167]
[1733598926997,1.74216,4018.0,4017.1,1.07028504]
[1733598927212,1.74216,4018.0,4017.2,0.8297]
[1733598927213,1.7423,4017.7,4017.2,0.8297]
[1733598927411,1.74233,4017.6,4016.6,1.3797]
[1733598927815,1.74225,4017.8,4016.8,1.07028504]
[1733598928332,1.74225,4017.8,4016.9,0.8297]
[1733598928988,0.8006,4018.0,4017.0,1.74258]
[1733598929219,1.74206,4018.3,4017.2,0.8297]
[1733598930016,0.8006,4018.4,4017.2,0.8297]
[1733598930331,1.74216,4018.0,4017.2,0.8297]
[1733598930690,0.8006,4018.4,4017.2,0.8297]
[1733598930691,1.74214,4018.1,4017.2,0.8297]
[1733598933405,2.5426,4018.4,4017.2,0.8297]
[1733598933813,1.74204,4018.3,4017.2,0.8297]
[1733598934038,1.07028504,4018.3,4017.2,0.8297]
[1733598934329,0.8006,4018.4,4017.2,0.8297]
[1733598934487,0.85893584,4018.3,4017.2,0.8297]
[1733598934693,1.74211,4018.2,4017.2,0.8297]
[1733598935093,1.74213,4018.1,4017.2,0.8297]
[1733598935705,1.74222,4017.9,4017.2,0.8297]
[1733598935910,1.74229,4017.7,4017.2,0.8297]
[1733598936107,1.74229,4017.7,4016.9,0.8063]
[1733598936593,0.8088,4017.8,4016.9,0.8063]
[1733598936594,1.74241,4017.5,4016.9,0.8063]
[1733598936909,0.8088,4017.8,4016.4,1.07028504]
[1733598936910,1.74249,4017.3,4016.4,1.07028504]
[1733598937116,1.74251,4017.2,4016.4,1.07028504]
[1733598937639,0.8088,4017.3,4016.4,1.07028504]
[1733598937854,1.74255,4017.1,4016.4,1.07028504]
[1733598939947,1.74255,4017.1,4016.5,0.8063]
[1733598941639,1.7427,4016.8,4016.0,0.774]
[1733598942277,1.74263,4016.9,4016.0,0.774]
[1733598942567,1.74273,4016.7,4016.0,0.774]
[1733598944975,0.7666,4017.0,4016.0,0.774]
[1733598945441,0.7666,4017.0,4016.2,1.07028504]
[1733598945650,1.74263,4016.9,4016.2,1.07028504]
[1733598946747,1.29058683,4017.2,4016.3,0.8008]
[1733598946947,0.86039034,4017.1,4016.3,0.8008]
[1733598947156,3.12508021,4017.3,4016.3,0.8008]
[1733598947362,3.19099871,4017.2,4016.3,0.8008]
[1733598947666,0.8603185,4017.1,4016.3,0.8008]
[1733598947875,2.33104308,4017.2,4016.3,0.8008]
[1733598947876,1.74262,4017.0,4016.3,0.8008]
[1733598948045,1.0400947,4017.2,4016.3,0.8008]
[1733598948247,1.74264,4016.9,4016.3,0.8008]
[1733598948650,1.74278,4016.6,4015.3,1.74329]
[1733598948870,1.74278,4016.6,4015.5,0.8008]
[1733598949171,1.74278,4016.6,4015.5,3.8008]
[1733598949936,0.7944,4016.8,4015.5,0.8008]
[1733598950143,1.7429,4016.3,4015.5,0.8008]
[1733598950686,1.74278,4016.6,4015.6,1.07028504]
[1733598951033,1.74281,4016.5,4015.6,1.07028504]
[1733598952055,1.74276,4016.7,4015.7,0.8008]
[1733598952981,0.86099121,4016.6,4015.7,0.8008]
[1733598953141,1.74277,4016.6,4015.7,0.8008]
[1733598953343,1.29136264,4016.7,4015.7,0.8008]
[1733598953677,2.11037974,4016.4,4015.7,0.8008]
[1733598953849,3.19236487,4016.3,4015.7,0.8008]
[1733598954052,2.15238412,4016.2,4015.7,0.8008]
[1733598954281,0.86080595,4016.1,4015.7,0.8008]
[1733598954485,3.03415892,4016.2,4015.7,0.8008]
[1733598954697,1.0400947,4016.3,4015.7,0.8008]
[1733598954990,0.86075826,4016.2,4015.8,0.02206923]
[1733598955143,3.03406194,4016.3,4015.8,0.02206923]
[1733598955337,3.03406194,4016.3,4015.7,0.8008]
[1733598955338,1.7429,4016.3,4015.7,0.8008]
[1733598955540,1.7429,4016.3,4015.8,0.02206923]
[1733598956066,1.7429,4016.3,4015.7,0.8008]
[1733598956598,1.74294,4016.2,4015.8,0.02206923]
[1733598956875,1.29068335,4016.5,4015.7,0.8008]
[1733598957080,2.7828747,4016.6,4015.7,1.11304529]
[1733598957290,1.74278,4016.6,4015.7,1.11304529]
[1733598957461,1.74278,4016.6,4015.8,0.02206923]
[1733598957665,1.74278,4016.6,4015.7,1.11304529]
[1733598958187,0.8603179,4016.5,4015.7,1.11304529]
[1733598958764,1.8344947,4016.8,4015.7,1.11304529]
[1733598958964,0.86017954,4016.7,4015.9,0.8008]
[1733598959165,1.29026932,4016.9,4015.9,1.74306]
[1733598959403,1.29014526,4017.1,4016.0,0.82284969]
[1733598959572,0.86006319,4017.0,4016.0,0.82284969]
[1733598959755,4.07274996,4017.2,4016.0,0.82284969]
[1733598959955,0.86005648,4017.1,4016.2,0.8008]
[1733598960292,1.74247,4017.3,4016.2,0.8008]
[1733598960471,2.60258018,4017.2,4016.2,0.8008]
[1733598960790,1.74251,4017.2,4016.3,0.02204969]
[1733598960965,0.8601177,4017.1,4016.2,0.8008]
[1733598961292,2.6027377,4017.0,4016.2,0.8008]
[1733598961493,1.74262,4017.0,4016.3,0.02204969]
[1733598961858,1.74262,4017.0,4016.2,0.8008]
[1733598962257,1.74262,4017.0,4016.3,0.02204969]
[1733598962496,1.04026005,4017.2,4016.3,0.02204969]
[1733598962497,2.33056463,4017.2,4016.3,0.02204969]
[1733598962695,0.8601842,4017.1,4016.4,0.7855]
[1733598962998,0.8601842,4017.1,4016.5,0.02204969]
[1733598963157,1.29030458,4017.2,4016.5,0.02204969]
[1733598963364,0.86018483,4017.1,4016.5,0.02204969]
[1733598963563,2.33056463,4017.2,4016.5,0.02204969]
[1733598963800,2.15052414,4017.1,4016.5,0.02204969]
[1733598964095,2.78276005,4017.3,4016.6,0.7855]
[1733598964298,0.86022997,4017.2,4016.6,0.7855]
[1733598964457,2.33065863,4017.3,4016.7,0.02195206]
[1733598964666,0.86030386,4017.2,4016.7,0.02195206]
[1733598964869,1.04026005,4017.4,4016.6,0.7855]
[1733598965110,0.8602942,4017.3,4016.6,0.7855]
[1733598965278,1.04026005,4017.4,4016.7,0.02195206]
[1733598965480,2.1507836,4017.3,4016.7,0.02195206]
[1733598965710,1.29045579,4017.4,4016.6,0.7855]
[1733598965906,0.86034666,4017.3,4016.6,0.7855]
[1733598966087,2.33071584,4017.5,4016.7,0.02195206]
[1733598966282,0.86033512,4017.4,4016.7,0.02195206]
[1733598966504,1.29060165,4017.4,4016.6,0.7855]
[1733598966679,0.86040195,4017.3,4016.6,0.7855]
[1733598967010,0.86040195,4017.2,4016.7,0.02195206]
[1733598967198,0.7601,4017.7,4016.7,0.8141]
[1733598967199,2.3308617,4017.5,4016.7,0.8141]
[1733598967375,0.86042295,4017.4,4016.8,0.02195206]
[1733598967724,2.33088909,4017.6,4016.7,0.8141]
[1733598967887,2.15106581,4017.5,4016.8,0.8141]
[1733598968086,1.56039007,4017.8,4016.8,0.8141]
[1733598968087,1.04026005,4017.7,4016.9,0.8141]
[1733598968273,3.19132182,4017.6,4016.9,0.83605206]
[1733598968479,1.74212,4018.1,4016.9,0.83605206]
[1733598968480,0.86042471,4017.5,4016.9,0.83605206]
[1733598968703,1.04026005,4017.7,4016.9,0.83605206]
[1733598968704,1.2907947,4017.6,4016.9,1.74259]
[1733598968910,2.33101662,4017.8,4017.0,0.8141]
[1733598969175,0.86049039,4017.7,4017.0,0.8141]
[1733598969375,1.29086987,4017.7,4017.0,0.8141]
[1733598969583,1.29090337,4017.7,4017.0,0.8141]
[1733598969994,1.29090337,4017.7,4017.1,0.8141]
[1733598969995,0.86059911,4017.6,4017.1,0.8141]
[1733598970177,1.29105646,4017.6,4017.1,0.8141]
[1733598970716,1.72106058,4018.5,4016.5,2.29281]
[1733598970717,1.04026005,4017.8,4017.3,0.8141]
[1733598970917,0.86069178,4017.7,4017.4,2.55652]
[1733598971130,1.04026005,4017.9,4017.4,2.55652]
[1733598971281,0.86067204,4017.8,4017.4,0.8141]
[1733598971481,1.04026005,4018.0,4017.4,0.8141]
[1733598971739,2.15180193,4017.9,4017.4,0.8141]
[1733598972015,0.86072077,4017.8,4017.4,0.8141]
[1733598972177,1.04026005,4017.9,4017.4,0.8141]
[1733598972383,0.86083135,4017.8,4017.4,0.8141]
[1733598972585,1.04026005,4017.9,4017.4,0.8141]
[1733598972908,0.86082035,4017.8,4017.4,0.8141]
[1733598973105,1.04026005,4017.9,4017.4,0.8141]
[1733598973301,0.86082123,4017.8,4017.4,0.8141]
[1733598973614,1.04026005,4017.9,4017.4,0.8141]
[1733598973823,0.86084283,4017.8,4017.4,0.8141]
[1733598974018,1.04026005,4017.9,4017.4,0.8141]
[1733598974318,0.86084298,4017.8,4017.4,0.8141]
[1733598974525,1.04026005,4017.9,4017.4,0.8141]
[1733598974699,0.86085035,4017.8,4017.4,0.8141]
[1733598974897,1.04026005,4017.9,4017.4,0.8141]
[1733598975093,0.86084988,4017.8,4017.4,0.8141]
[1733598975403,1.04026005,4017.9,4017.4,0.8141]
[1733598975725,0.86087644,4017.8,4017.4,0.8141]
[1733598976049,1.04026005,4017.9,4017.4,0.8141]
[1733598976228,2.15218627,4017.8,4017.4,0.8141]
[1733598976530,1.04026005,4017.9,4017.4,0.8141]
[1733598976682,2.15228527,4017.8,4017.4,0.8141]
[1733598976878,0.86091392,4017.7,4017.4,0.8141]
[1733598977120,1.04026005,4017.9,4017.4,0.8141]
[1733598977326,2.15240431,4017.8,4017.4,0.8141]
[1733598977488,2.15240431,4017.7,4017.4,0.8141]
[1733598977680,2.15248941,4017.6,4017.4,0.8141]
[1733598977921,1.04026005,4017.8,4017.4,0.8141]
[1733598978218,2.15252976,4017.7,4017.4,0.8141]
[1733598978419,1.04026005,4017.8,4017.4,0.8141]
[1733598978617,0.86102049,4017.7,4017.4,0.8141]
[1733598978831,1.04026005,4017.8,4017.4,0.8141]
[1733598978999,0.86101772,4017.7,4017.4,0.8141]
[1733598979321,1.04026005,4017.8,4017.4,0.8141]
[1733598979524,0.86103901,4017.7,4017.4,0.8141]
[1733598979830,1.04026005,4017.9,4017.4,0.8141]
[1733598980038,2.15257537,4017.8,4017.4,0.8141]
[1733598980335,2.15269395,4017.7,4017.4,0.8141]
[1733598980521,0.86103015,4017.6,4017.4,0.8141]
[1733598980835,1.04026005,4017.8,4017.4,0.8141]
[1733598981039,2.15275571,4017.7,4017.4,0.8141]
[1733598981193,0.86110228,4017.6,4017.4,0.8141]
[1733598981400,1.04026005,4017.8,4017.4,0.8141]
[1733598981624,2.15287006,4017.7,4017.4,0.8141]
[1733598981903,0.86114802,4017.6,4017.4,0.8141]
[1733598982207,1.04026005,4017.7,4017.4,0.8141]
[1733598982414,5.10915077,4018.3,4017.4,0.8141]
[1733598982415,0.86118103,4017.6,4017.4,0.8141]
[1733598982713,1.04026005,4017.8,4017.4,0.8141]
[1733598982912,2.15285108,4017.7,4017.4,0.8141]
[1733598983108,0.86114043,4017.6,4017.4,0.8141]
[1733598983313,0.86117138,4017.5,4016.8,0.7653]
[1733598983591,2.15300766,4017.4,4016.8,0.7653]
[1733598983719,0.86117138,4017.3,4016.8,0.7653]
[1733598983897,1.04026005,4017.5,4016.8,0.7653]
[1733598984235,1.29178354,4017.4,4016.8,0.7653]
[1733598984443,0.86119164,4017.3,4016.8,0.7653]
[1733598984606,2.15302151,4017.2,4016.0,0.7653]
[1733598984818,2.15308806,4017.1,4016.0,0.7653]
[1733598985002,0.86119164,4017.0,4016.4,1.74283]
[1733598985208,1.04026005,4017.2,4016.5,0.7653]
[1733598985513,2.15305671,4017.1,4016.5,0.7653]
[1733598985712,1.04026005,4017.3,4016.7,1.74268]
[1733598985913,0.8612427,4017.2,4016.8,0.7653]
[1733598986139,1.04026005,4017.3,4016.8,0.7653]
[1733598986349,0.8612039,4017.2,4016.8,2.50797]
[1733598986558,1.04026005,4017.4,4016.8,2.50797]
[1733598986841,2.15302963,4017.3,4016.8,2.50797]
[1733598987046,1.04026005,4017.4,4016.8,2.50797]
[1733598987047,0.86121096,4017.2,4016.8,2.50797]
[1733598987216,1.04026005,4017.4,4016.8,2.50797]
[1733598987552,1.72244692,4017.9,4016.8,2.50797]
[1733598987553,1.04026005,4017.7,4017.2,2.5204]
[1733598987752,3.1929928,4017.6,4017.2,0.7779]
[1733598988041,0.86109387,4017.5,4017.4,2.5203]
[1733598989018,1.04026005,4017.7,4017.4,2.5203]
[1733598989200,0.86106362,4017.6,4017.4,2.5203]
[1733598989541,1.04026005,4017.8,4017.4,2.5203]
[1733598989741,3.19285522,4017.7,4017.4,2.5203]
[1733598989920,2.15259517,4017.6,4017.4,2.5203]
[1733598990114,0.86103807,4017.5,4017.4,2.5203]
[1733598991929,0.86104314,4017.5,4017.4,2.5203]
[1733598992134,0.86104314,4017.5,4017.4,0.7779]
[1733598992348,3.19286756,4017.5,4017.0,0.7706]
[1733598992637,1.04026005,4017.6,4017.0,0.7706]
[1733598992952,2.15271362,4017.5,4017.0,0.7706]
[1733598993286,1.04026005,4017.6,4017.0,0.7706]
[1733598993426,0.86105353,4017.5,4017.0,0.7706]
[1733598993633,1.04026005,4017.6,4017.0,0.7706]
[1733598993837,0.86108048,4017.5,4017.0,0.7706]
[1733598994062,1.04026005,4017.7,4017.1,1.74252]
[1733598994262,2.15265371,4017.6,4017.2,1.74249]
[1733598994469,1.04026005,4017.7,4017.2,1.74249]
[1733598994770,0.8138,4018.0,4017.2,1.74249]
[1733598994771,0.8610264,4017.6,4017.2,1.74249]
[1733598995068,0.86104859,4017.5,4017.2,1.74249]
[1733598995270,1.04026005,4017.7,4017.2,1.74249]
[1733598995570,2.15258605,4017.6,4017.3,1.74245]
[1733598995730,1.04026005,4017.8,4017.4,0.7706]
[1733598995933,2.1525559,4017.7,4017.4,0.7706]
[1733598996129,0.86102439,4017.6,4017.4,0.7706]
[1733598996435,1.04026005,4017.8,4017.6,1.74233]
[1733598996757,2.15260132,4017.7,4017.6,1.74233]
[1733598997135,2.15260388,4017.7,4017.6,1.74233]
[1733598997571,3.19286393,4017.7,4017.6,1.74233]
[1733598998569,2.15260388,4017.7,4017.6,1.74233]
[1733598998791,2.1528165,4017.7,4017.6,1.74233]
[1733598999768,3.19307655,4017.7,4017.6,1.74233]
[1733599000467,3.19307655,4017.7,4017.5,1.74236]
[1733599000676,2.1528165,4017.6,4017.5,1.74236]
[1733599001558,3.19307655,4017.6,4017.5,1.74236]
[1733599003248,2.1528165,4017.6,4017.5,1.74236]
[1733599004284,3.71320657,4017.6,4017.5,1.74236]
[1733599005186,2.1528165,4017.6,4017.5,1.74236]
[1733599005490,3.71320657,4017.6,4017.5,1.74236]
[1733599007579,3.71320657,4017.6,4017.5,1.993656]
[1733599007748,3.19623801,4017.6,4017.5,2.821256]
[1733599007946,2.1528165,4017.6,4017.5,2.821256]
[1733599008362,0.8611266,4017.6,4017.5,2.821256]
[1733599008582,2.1570809,4017.6,4017.5,2.821256]
[1733599009479,3.20050241,4017.6,4017.5,2.56996]
[1733599011447,2.1570809,4017.6,4017.5,2.56996]
[1733599011677,3.20087147,4017.6,4017.5,2.56996]
[1733599012086,3.20087147,4017.6,4017.5,0.8276]
[1733599012281,2.1570809,4017.6,4017.2,2.5701]
[1733599012603,3.20087953,4017.5,4017.2,2.5701]
[1733599012907,1.04379863,4017.3,4017.0,1.74258]
[1733599013110,1.04379863,4017.3,4016.9,0.8276]
[1733599013111,3.20100648,4017.2,4016.9,0.8276]
[1733599013266,2.8519201,4017.6,4015.9,1.74305]
[1733599013267,3.20100648,4017.1,4016.6,1.74276]
[1733599013600,1.04392558,4016.9,4016.6,1.74276]
[1733599013799,2.15810243,4016.8,4016.6,1.74276]
[1733599014004,0.86324097,4016.7,4016.6,1.74276]
[1733599015702,1.04392558,4016.9,4016.7,1.74271]
[1733599015859,2.15799186,4016.8,4016.7,1.74271]
[1733599016067,0.86319674,4016.8,4016.7,1.74271]
[1733599017608,2.15788211,4016.8,4016.7,1.74271]
[1733599017819,2.15788211,4016.8,4016.5,0.8276]
[1733599017820,2.15788211,4016.8,4016.5,2.5704]
[1733599017996,0.86319674,4016.7,4016.5,2.5704]
[1733599018201,1.04392558,4016.9,4016.5,2.5704]
[1733599018376,2.33179007,4017.1,4016.5,2.5704]
[1733599018377,3.20181183,4016.8,4016.5,2.5704]
[1733599018717,0.8631545,4016.7,4016.5,2.5704]
[1733599018916,1.04392558,4016.9,4016.5,2.5704]
[1733599019092,3.20169048,4016.8,4016.5,2.5704]
[1733599019291,0.86310596,4016.7,4016.5,2.5704]
[1733599019521,1.04392558,4016.8,4016.5,1.7428]
[1733599019818,0.86305987,4016.7,4016.5,1.7428]
[1733599019989,1.04392558,4016.8,4016.5,1.7428]
[1733599020187,2.1576827,4016.7,4016.5,1.7428]
[1733599020400,1.04392558,4016.8,4016.5,1.7428]
[1733599020615,3.20163876,4016.7,4016.2,2.5705]
[1733599020817,3.20163876,4016.6,4016.2,0.8276]
[1733599021120,0.86308527,4016.5,4016.3,1.74289]
[1733599021344,1.04392558,4016.6,4016.3,1.74289]
[1733599021646,0.86300326,4016.5,4016.3,1.74289]
[1733599021846,1.04392558,4016.6,4016.3,1.74289]
[1733599022060,1.04392558,4016.7,4016.4,1.74282]
[1733599022342,1.04392558,4016.7,4016.3,0.257049]
[1733599022343,1.04392558,4016.9,4016.6,0.7586]
[1733599022555,1.04392558,4017.2,4017.1,1.74255]
[1733599022709,2.15701335,4017.2,4017.1,0.55]
[1733599023050,2.15701335,4017.2,4017.0,0.55]
[1733599023349,2.15704885,4017.1,4017.0,0.55]
[1733599023650,2.15704885,4017.1,4016.9,0.7586]
[1733599023811,1.04392558,4017.2,4016.9,0.7586]
[1733599024008,2.15704691,4017.1,4016.9,0.7586]
[1733599024360,0.86283658,4017.0,4016.9,2.50123]
[1733599024540,1.04392558,4017.2,4017.0,1.74259]
[1733599024845,1.04392558,4017.2,4016.9,0.7586]